fUST/lending_fUST_20240227
["ID","MTS","AMOUNT","RATE_DAILY","PERIOD"]
[315395919,1709009377555,155.18622347,0.00017903,2]
[315395920,1709009393544,155.18622347,0.00017903,2]
[315395921,1709009411549,155.18311608,0.00017903,2]
[315395922,1709009429582,155.18311608,0.00017903,2]
[315395955,1709009439800,-677.63039437,0.00018236,2]
[315395956,1709009439811,-1732.55370606,0.00018237,3]
[315395957,1709009439821,-848.8107144,0.00018241,2]
[315395958,1709009439830,-1415.23694982,0.00018246,2]
[315395959,1709009439843,-300.8218746,0.00018247,2]
[315395960,1709009439853,-1327.57192241,0.000189,2]
[315395961,1709009439862,-168.67438004,0.00019067,2]
[315395962,1709009439871,-104310.12786304,0.000191,2]
[315395963,1709009439882,-300.0,0.00019167,2]
[315395964,1709009439890,-767.38,0.00019168,3]
[315395965,1709009439899,-255.79,0.00019168,3]
[315395966,1709009439909,-511.58,0.00019168,3]
[315395967,1709009439919,-300.07878882,0.00019176,2]
[315395968,1709009439928,-1213.57750513,0.00019177,2]
[315395969,1709009439937,-500.0,0.00019177,2]
[315395970,1709009439948,-1213.57750513,0.00019177,2]
[315395971,1709009439958,-500.0,0.00019178,2]
[315395972,1709009439967,-500.0,0.00019178,2]
[315395973,1709009439977,-501.01152787,0.00019178,2]
[315395974,1709009439987,-500.0,0.00019178,2]
[315395975,1709009439997,-500.0,0.00019178,2]
[315395976,1709009440006,-500.0,0.00019178,2]
[315395977,1709009440016,-500.0,0.00019178,2]
[315395978,1709009440025,-500.0,0.00019178,2]
[315395979,1709009440034,-151.0,0.00019178,2]
[315395980,1709009440043,-500.0,0.00019178,2]
[315395981,1709009440055,-500.0,0.00019178,2]
[315395982,1709009440065,-500.52235363,0.00019178,2]
[315395983,1709009440075,-500.0,0.00019178,2]
[315395984,1709009440084,-500.0,0.00019178,2]
[315395985,1709009440094,-637.03,0.00019178,2]
[315395986,1709009440103,-500.0,0.00019178,2]
[315395987,1709009440113,-500.0,0.00019178,2]
[315395988,1709009440123,-1060.81,0.00019178,2]
[315395989,1709009440132,-500.0,0.00019178,2]
[315395991,1709009440142,-500.0,0.00019178,2]
[315395992,1709009440151,-500.0,0.00019178,2]
[315395993,1709009440161,-500.84804991,0.00019178,2]
[315395994,1709009440170,-500.0,0.00019178,2]
[315395995,1709009440180,-500.0,0.00019178,2]
[315395996,1709009440190,-511.73413468,0.00019178,2]
[315395997,1709009440199,-500.0,0.00019178,2]
[315395998,1709009440209,-500.0,0.00019178,2]
[315395999,1709009440219,-500.0,0.00019178,2]
[315396000,1709009440228,-500.0,0.00019178,2]
[315396001,1709009440238,-1000.0,0.00019178,2]
[315396002,1709009440248,-500.0,0.00019178,2]
[315396003,1709009440257,-500.0,0.00019178,2]
[315396004,1709009440266,-500.42485767,0.00019178,2]
[315396005,1709009440276,-500.0,0.00019178,2]
[315396006,1709009440285,-500.0,0.00019178,2]
[315396007,1709009440295,-333.24187011,0.00019178,2]
[315396008,1709009440305,-500.0,0.00019178,2]
[315396009,1709009440314,-500.0,0.00019178,2]
[315396010,1709009440324,-549.59387891,0.00019178,2]
[315396011,1709009440334,-504.40324197,0.00019178,2]
[315396012,1709009440345,-583.40486737,0.00019178,2]
[315396013,1709009440354,-500.0,0.00019178,2]
[315396014,1709009440364,-500.0,0.00019178,2]
[315396015,1709009440373,-646.16620991,0.00019178,2]
[315396016,1709009440383,-500.0,0.00019178,2]
[315396017,1709009440392,-503.1173784,0.00019178,2]
[315396018,1709009440401,-500.0,0.00019178,2]
[315396019,1709009440411,-201.80826819,0.00019178,2]
[315396020,1709009440420,-594.47,0.00019178,2]
[315396021,1709009440430,-500.0,0.00019178,2]
[315396022,1709009440439,-500.0,0.00019178,2]
[315396023,1709009440448,-500.0,0.00019178,2]
[315396024,1709009440458,-468.65722539,0.00019178,2]
[315396025,1709009440467,-500.0,0.00019178,2]
[315396026,1709009440476,-500.0,0.00019178,2]
[315396027,1709009440485,-506.9,0.00019178,2]
[315396028,1709009440496,-506.9,0.00019178,2]
[315396029,1709009440505,-500.0,0.00019178,2]
[315396030,1709009440514,-500.0,0.00019178,2]
[315396031,1709009440524,-500.0,0.00019178,2]
[315396032,1709009440533,-500.0,0.00019178,2]
[315396033,1709009440543,-543.72,0.00019178,2]
[315396034,1709009440553,-627.07237057,0.00019178,2]
[315396035,1709009440565,-500.0,0.00019178,2]
[315396036,1709009440574,-500.0,0.00019178,2]
[315396037,1709009440584,-421.66620567,0.00019178,2]
[315396038,1709009440594,-2517.78,0.00019178,2]
[315396039,1709009440603,-645.03411063,0.00019178,2]
[315396040,1709009440612,-303.42787802,0.00019178,2]
[315396041,1709009440623,-1007.43,0.00019178,2]
[315396042,1709009440632,-500.0,0.00019178,2]
[315396043,1709009440642,-501.79239034,0.00019178,2]
[315396044,1709009440651,-500.0,0.00019178,2]
[315396046,1709009440661,-500.26744116,0.00019178,2]
[315396047,1709009440670,-418.60557708,0.00019178,2]
[315396048,1709009440679,-500.39586929,0.00019178,2]
[315396049,1709009440690,-1663.07,0.00019178,2]
[315396050,1709009440699,-505.47843032,0.00019178,2]
[315396051,1709009440709,-500.0,0.00019178,2]
[315396052,1709009440719,-501.9436783,0.00019178,2]
[315396053,1709009440729,-500.0,0.00019178,2]
[315396054,1709009440740,-500.0,0.00019178,2]
[315396055,1709009440751,-501.36407866,0.00019178,2]
[315396056,1709009440762,-500.0,0.00019178,2]
[315396057,1709009440771,-500.0,0.00019178,2]
[315396058,1709009440781,-500.0,0.00019178,2]
[315396059,1709009440792,-259.29438802,0.00019178,2]
[315396060,1709009440801,-500.0,0.00019178,2]
[315396061,1709009440810,-155.18466976,0.00019178,2]
[315396062,1709009440823,-500.0,0.00019178,2]
[315396063,1709009440836,-500.0,0.00019178,2]
[315396064,1709009440846,-500.0,0.00019178,2]
[315396065,1709009440855,-500.0,0.00019178,2]
[315396066,1709009440865,-500.0,0.00019178,2]
[315396067,1709009440874,-500.0,0.00019178,2]
[315396068,1709009440883,-521.93,0.00019178,2]
[315396069,1709009440893,-1100.16,0.00019178,2]
[315396070,1709009440902,-500.0,0.00019178,2]
[315396071,1709009440912,-500.0,0.00019178,2]
[315396072,1709009440921,-500.0,0.00019178,2]
[315396073,1709009440930,-500.17905567,0.00019178,2]
[315396074,1709009440939,-501.65610853,0.00019178,2]
[315396075,1709009440948,-500.0,0.00019178,2]
[315396076,1709009440957,-500.0,0.00019178,2]
[315396077,1709009440966,-500.0,0.00019178,2]
[315396078,1709009440975,-500.0,0.00019178,2]
[315396079,1709009440984,-500.0,0.00019178,2]
[315396080,1709009440994,-500.0,0.00019178,2]
[315396081,1709009441005,-1715.67,0.00019178,2]
[315396082,1709009441014,-500.0,0.00019178,2]
[315396083,1709009441023,-445.96295239,0.00019178,2]
[315396084,1709009441032,-500.0,0.00019178,2]
[315396085,1709009441042,-500.42301323,0.00019178,2]
[315396086,1709009441051,-500.0,0.00019178,2]
[315396087,1709009441060,-582.41093118,0.00019178,2]
[315396088,1709009441070,-501.88399839,0.00019178,2]
[315396089,1709009441079,-500.0,0.00019178,2]
[315396090,1709009441088,-500.39180037,0.00019178,2]
[315396091,1709009441098,-1409.33,0.00019178,2]
[315396092,1709009441108,-197.79317948,0.00019178,2]
[315396093,1709009441117,-452.04550329,0.00019178,2]
[315396094,1709009441126,-500.0,0.00019178,2]
[315396095,1709009441135,-517.31375723,0.00019178,2]
[315396096,1709009441144,-500.0,0.00019178,2]
[315396097,1709009441153,-500.0,0.00019178,2]
[315396098,1709009441163,-500.0,0.00019178,2]
[315396099,1709009441172,-607.49573442,0.00019178,2]
[315396100,1709009441182,-500.0,0.00019178,2]
[315396101,1709009441191,-500.0,0.00019178,2]
[315396102,1709009441200,-500.0,0.00019178,2]
[315396103,1709009441210,-500.0,0.00019178,2]
[315396104,1709009441219,-500.0,0.00019178,2]
[315396105,1709009441228,-500.0,0.00019178,2]
[315396106,1709009441237,-500.0,0.00019178,2]
[315396107,1709009441248,-500.0,0.00019178,2]
[315396108,1709009441257,-500.0,0.00019178,2]
[315396109,1709009441266,-500.0,0.00019178,2]
[315396110,1709009441275,-500.77842844,0.00019178,2]
[315396111,1709009441285,-500.0,0.00019178,2]
[315396112,1709009441294,-500.0,0.00019178,2]
[315396113,1709009441303,-500.0,0.00019178,2]
[315396114,1709009441313,-219.97376393,0.00019178,2]
[315396115,1709009441323,-500.0,0.00019178,2]
[315396116,1709009441332,-500.0,0.00019178,2]
[315396117,1709009441342,-500.0,0.00019178,2]
[315396118,1709009441351,-14414.26,0.00019178,2]
[315396119,1709009441361,-500.0,0.00019178,2]
[315396120,1709009441370,-500.0,0.00019178,2]
[315396121,1709009441379,-1106.85,0.00019178,2]
[315396122,1709009441389,-591.67167096,0.00019178,2]
[315396123,1709009441398,-500.0,0.00019178,2]
[315396124,1709009441408,-500.0,0.00019178,2]
[315396125,1709009441417,-1501.65,0.00019178,2]
[315396126,1709009441426,-500.0,0.00019178,2]
[315396127,1709009441435,-616.29533652,0.00019178,2]
[315396128,1709009441445,-1321.38,0.00019178,2]
[315396129,1709009441453,-501.23926151,0.00019178,2]
[315396130,1709009441462,-511.86785933,0.00019178,2]
[315396131,1709009441471,-500.0,0.00019178,2]
[315396132,1709009441481,-500.0,0.00019178,2]
[315396133,1709009441490,-500.0,0.00019178,2]
[315396134,1709009441500,-7714.86,0.00019178,2]
[315396135,1709009441509,-500.0,0.00019178,2]
[315396136,1709009441518,-501.75603767,0.00019178,2]
[315396137,1709009441527,-500.0,0.00019178,2]
[315396138,1709009441537,-500.0,0.00019178,2]
[315396139,1709009441546,-480.33059787,0.00019178,2]
[315396140,1709009441554,-500.35008704,0.00019178,2]
[315396141,1709009441564,-500.0,0.00019178,2]
[315396142,1709009441573,-500.0,0.00019178,2]
[315396143,1709009441582,-501.22080587,0.00019178,2]
[315396144,1709009441591,-2963.25,0.00019178,2]
[315396145,1709009441600,-726.24,0.00019178,2]
[315396146,1709009441609,-714.93,0.00019178,2]
[315396147,1709009441619,-500.0,0.00019178,2]
[315396148,1709009441628,-500.0,0.00019178,2]
[315396149,1709009441637,-500.0,0.00019178,2]
[315396150,1709009441646,-500.0,0.00019178,2]
[315396151,1709009441655,-500.0,0.00019178,2]
[315396152,1709009441664,-500.0,0.00019178,2]
[315396153,1709009441673,-500.0,0.00019178,2]
[315396154,1709009441683,-500.0,0.00019178,2]
[315396155,1709009441691,-500.0,0.00019178,2]
[315396156,1709009441700,-500.0,0.00019178,2]
[315396157,1709009441710,-896.06,0.00019178,2]
[315396158,1709009441719,-500.0,0.00019178,2]
[315396159,1709009441728,-500.0,0.00019178,2]
[315396160,1709009441737,-763.47,0.00019178,2]
[315396161,1709009441746,-500.91730771,0.00019178,2]
[315396162,1709009441756,-1053.12,0.00019178,2]
[315396163,1709009441765,-500.0,0.00019178,2]
[315396164,1709009441775,-500.0,0.00019178,2]
[315396165,1709009441784,-500.0,0.00019178,2]
[315396166,1709009441793,-500.0,0.00019178,2]
[315396167,1709009441801,-500.0,0.00019178,2]
[315396168,1709009441810,-308.15816311,0.00019178,2]
[315396169,1709009441820,-537.44,0.00019178,2]
[315396170,1709009441828,-500.0,0.00019178,2]
[315396171,1709009441841,-500.0,0.00019178,2]
[315396172,1709009441850,-500.0,0.00019178,2]
[315396173,1709009441859,-500.0,0.00019178,2]
[315396174,1709009441869,-14656.76,0.00019178,2]
[315396175,1709009441880,-500.0,0.00019178,2]
[315396176,1709009441889,-500.0,0.00019178,2]
[315396177,1709009441898,-500.0,0.00019178,2]
[315396178,1709009441908,-1985.35,0.00019178,2]
[315396179,1709009441918,-500.0,0.00019178,2]
[315396180,1709009441927,-5674.31,0.00019178,2]
[315396181,1709009441936,-500.0,0.00019178,2]
[315396182,1709009441946,-500.0,0.00019178,2]
[315396183,1709009441955,-500.0,0.00019178,2]
[315396184,1709009441968,-1212.6,0.00019178,2]
[315396185,1709009441977,-2855.21,0.00019178,2]
[315396186,1709009441986,-500.0,0.00019178,2]
[315396187,1709009441998,-500.0,0.00019178,2]
[315396188,1709009442008,-500.0,0.00019178,2]
[315396189,1709009442017,-503.20835864,0.00019178,2]
[315396190,1709009442026,-500.36013497,0.00019178,2]
[315396191,1709009442035,-500.0,0.00019178,2]
[315396192,1709009442044,-500.0,0.00019178,2]
[315396193,1709009442053,-500.0,0.00019178,2]
[315396194,1709009442062,-500.0,0.00019178,2]
[315396195,1709009442072,-500.0,0.00019178,2]
[315396196,1709009442081,-494.85355284,0.00019178,2]
[315396197,1709009442090,-500.0,0.00019178,2]
[315396198,1709009442099,-500.0,0.00019178,2]
[315396199,1709009442108,-500.0,0.00019178,2]
[315396200,1709009442118,-541.7,0.00019178,2]
[315396201,1709009442127,-641.65,0.00019178,2]
[315396202,1709009442137,-2226.58,0.00019178,2]
[315396203,1709009442146,-500.0,0.00019178,2]
[315396204,1709009442156,-500.0,0.00019178,2]
[315396205,1709009442165,-500.67580525,0.00019178,2]
[315396206,1709009442175,-2975.15,0.00019178,2]
[315396207,1709009442185,-500.0,0.00019178,2]
[315396208,1709009442195,-1960.4,0.00019178,2]
[315396209,1709009442205,-500.0,0.00019178,2]
[315396210,1709009442214,-1565.15,0.00019178,2]
[315396211,1709009442224,-1538.88,0.00019178,2]
[315396212,1709009442233,-320.86018493,0.00019178,2]
[315396213,1709009442242,-502.01239296,0.00019178,2]
[315396214,1709009442254,-500.0,0.00019178,2]
[315396215,1709009442264,-443.10422866,0.00019178,2]
[315396216,1709009442273,-500.0,0.00019178,2]
[315396217,1709009442283,-500.0,0.00019178,2]
[315396218,1709009442292,-2233.77,0.00019178,2]
[315396219,1709009442301,-500.0,0.00019178,2]
[315396220,1709009442310,-500.0,0.00019178,2]
[315396221,1709009442319,-500.0,0.00019178,2]
[315396222,1709009442328,-500.0,0.00019178,2]
[315396223,1709009442338,-1159.44,0.00019178,2]
[315396224,1709009442347,-500.0,0.00019178,2]
[315396225,1709009442356,-500.0,0.00019178,2]
[315396226,1709009442365,-694.82180753,0.00019178,2]
[315396227,1709009442374,-158.964339,0.00019178,2]
[315396228,1709009442383,-162.554202,0.00019178,2]
[315396229,1709009442393,-166.666666,0.00019178,2]
[315396230,1709009442403,-500.0,0.00019232,2]
[315396231,1709009442413,-500.0,0.00019287,2]
[315396232,1709009442423,-500.0,0.00019342,2]
[315396233,1709009442433,-581.11619847,0.00019352,2]
[315396234,1709009442442,-500.0,0.00019396,2]
[315396235,1709009442451,-506.9,0.0001945,2]
[315396236,1709009442460,-506.9,0.0001945,2]
[315396237,1709009442469,-500.0,0.0001945,2]
[315396238,1709009442478,-500.0,0.0001945,2]
[315396239,1709009442487,-500.0,0.0001945,2]
[315396240,1709009442497,-500.0,0.0001945,2]
[315396241,1709009442506,-500.0,0.00019451,2]
[315396242,1709009442515,-230.19847541,0.00019451,2]
[315396243,1709009442618,-506.9,0.00019451,2]
[315396244,1709009442627,-500.0,0.00019451,2]
[315396245,1709009442637,-502.71268128,0.00019451,2]
[315396246,1709009442646,-500.0,0.00019451,2]
[315396247,1709009442655,-410.10016763,0.00019452,2]
[315396248,1709009442664,-501.11795405,0.00019452,2]
[315396249,1709009442673,-407.92151327,0.00019452,2]
[315396250,1709009442683,-500.0,0.00019452,2]
[315396251,1709009442692,-500.0,0.00019452,2]
[315396252,1709009442701,-500.0,0.00019452,2]
[315396253,1709009442710,-207.61272348,0.00019452,2]
[315396254,1709009442720,-501.59626251,0.00019452,2]
[315396255,1709009442729,-500.0,0.00019452,2]
[315396256,1709009442738,-500.0,0.00019452,2]
[315396257,1709009442748,-500.0,0.00019452,2]
[315396258,1709009442757,-637.03,0.00019452,2]
[315396259,1709009442766,-1060.81,0.00019452,2]
[315396260,1709009442775,-527.39049889,0.00019452,2]
[315396261,1709009442784,-500.0,0.00019452,2]
[315396262,1709009442793,-500.0,0.00019452,2]
[315396263,1709009442802,-384.82319129,0.00019452,2]
[315396264,1709009442811,-500.0,0.00019452,2]
[315396265,1709009442821,-500.0,0.00019452,2]
[315396266,1709009442831,-1000.0,0.00019452,2]
[315396267,1709009442842,-500.0,0.00019452,2]
[315396268,1709009442851,-500.0,0.00019452,2]
[315396269,1709009442861,-500.0,0.00019452,2]
[315396270,1709009442870,-500.0,0.00019452,2]
[315396271,1709009442879,-500.0,0.00019452,2]
[315396272,1709009442888,-479.74109791,0.00019452,2]
[315396273,1709009442898,-500.0,0.00019452,2]
[315396274,1709009442907,-594.47,0.00019452,2]
[315396275,1709009442917,-573.44249112,0.00019452,2]
[315396276,1709009442927,-500.0,0.00019452,2]
[315396278,1709009442937,-500.0,0.00019452,2]
[315396279,1709009442945,-500.0,0.00019452,2]
[315396280,1709009442955,-500.0,0.00019452,2]
[315396281,1709009442963,-500.0,0.00019452,2]
[315396282,1709009442973,-543.72,0.00019452,2]
[315396283,1709009442982,-500.0,0.00019452,2]
[315396284,1709009442991,-500.0,0.00019452,2]
[315396285,1709009443001,-2517.78,0.00019452,2]
[315396286,1709009443009,-1007.43,0.00019452,2]
[315396287,1709009443019,-500.0,0.00019452,2]
[315396288,1709009443028,-502.13809935,0.00019452,2]
[315396291,1709009443037,-1663.07,0.00019452,2]
[315396292,1709009443046,-311.25723657,0.00019452,2]
[315396293,1709009443056,-500.0,0.00019452,2]
[315396295,1709009443065,-500.0,0.00019452,2]
[315396297,1709009443074,-501.98121851,0.00019452,2]
[315396299,1709009443083,-161.19598813,0.00019452,2]
[315396301,1709009443093,-500.0,0.00019452,2]
[315396303,1709009443102,-500.0,0.00019452,2]
[315396306,1709009443111,-500.0,0.00019452,2]
[315396307,1709009443121,-501.97109407,0.00019452,2]
[315396310,1709009443131,-521.93,0.00019452,2]
[315396315,1709009443140,-1100.16,0.00019452,2]
[315396319,1709009443150,-502.85792086,0.00019452,2]
[315396323,1709009443160,-500.0,0.00019452,2]
[315396328,1709009443169,-211.14111785,0.00019452,2]
[315396332,1709009443179,-500.0,0.00019452,2]
[315396336,1709009443188,-500.0,0.00019452,2]
[315396339,1709009443197,-1715.67,0.00019452,2]
[315396342,1709009443206,-500.0,0.00019452,2]
[315396347,1709009443215,-501.70867165,0.00019452,2]
[315396352,1709009443223,-500.0,0.00019452,2]
[315396357,1709009443232,-500.0,0.00019452,2]
[315396361,1709009443242,-1409.33,0.00019452,2]
[315396364,1709009443256,-500.0,0.00019452,2]
[315396366,1709009443265,-500.0,0.00019452,2]
[315396368,1709009443274,-500.74212623,0.00019452,2]
[315396370,1709009443283,-503.95237384,0.00019452,2]
[315396372,1709009443293,-500.0,0.00019452,2]
[315396375,1709009443303,-500.0,0.00019452,2]
[315396377,1709009443313,-500.0,0.00019452,2]
[315396378,1709009443323,-501.83788764,0.00019452,2]
[315396381,1709009443333,-500.0,0.00019452,2]
[315396382,1709009443342,-500.0,0.00019452,2]
[315396385,1709009443352,-502.97392599,0.00019452,2]
[315396386,1709009443361,-476.05935812,0.00019452,2]
[315396388,1709009443371,-500.0,0.00019452,2]
[315396389,1709009443381,-500.0,0.00019452,2]
[315396390,1709009443391,-632.27431855,0.00019452,2]
[315396391,1709009443400,-500.0,0.00019452,2]
[315396392,1709009443409,-501.95643743,0.00019452,2]
[315396393,1709009443420,-226.05511992,0.00019452,2]
[315396394,1709009443429,-500.0,0.00019452,2]
[315396395,1709009443438,-14414.26,0.00019452,2]
[315396396,1709009443449,-613.06489533,0.00019452,2]
[315396397,1709009443458,-500.0,0.00019452,2]
[315396398,1709009443468,-1106.85,0.00019452,2]
[315396399,1709009443478,-500.0,0.00019452,2]
[315396400,1709009443488,-500.0,0.00019452,2]
[315396401,1709009443499,-1501.65,0.00019452,2]
[315396402,1709009443508,-501.35547942,0.00019452,2]
[315396403,1709009443518,-1321.38,0.00019452,2]
[315396404,1709009443526,-500.0,0.00019452,2]
[315396405,1709009443535,-500.0,0.00019452,2]
[315396406,1709009443544,-500.0,0.00019452,2]
[315396407,1709009443554,-7714.86,0.00019452,2]
[315396408,1709009443563,-599.4018927,0.00019452,2]
[315396409,1709009443571,-500.0,0.00019452,2]
[315396410,1709009443581,-501.378692,0.00019452,2]
[315396411,1709009443590,-500.67273146,0.00019452,2]
[315396412,1709009443599,-2963.25,0.00019452,2]
[315396413,1709009443608,-726.24,0.00019452,2]
[315396414,1709009443617,-714.93,0.00019452,2]
[315396415,1709009443627,-500.0,0.00019452,2]
[315396416,1709009443637,-502.37139835,0.00019452,2]
[315396417,1709009443648,-503.26423189,0.00019452,2]
[315396418,1709009443657,-500.0,0.00019452,2]
[315396419,1709009443668,-500.0,0.00019452,2]
[315396420,1709009443677,-500.0,0.00019452,2]
[315396421,1709009443687,-502.3731827,0.00019452,2]
[315396422,1709009443696,-500.0,0.00019452,2]
[315396423,1709009443705,-896.06,0.00019452,2]
[315396424,1709009443714,-500.0,0.00019452,2]
[315396425,1709009443724,-503.49687487,0.00019452,2]
[315396426,1709009443733,-763.47,0.00019452,2]
[315396427,1709009443743,-1053.12,0.00019452,2]
[315396428,1709009443753,-500.0,0.00019452,2]
[315396429,1709009443763,-500.0,0.00019452,2]
[315396430,1709009443772,-500.0,0.00019452,2]
[315396431,1709009443781,-500.0,0.00019452,2]
[315396432,1709009443790,-500.0,0.00019452,2]
[315396433,1709009443800,-537.44,0.00019452,2]
[315396434,1709009443809,-500.0,0.00019452,2]
[315396435,1709009443821,-500.0,0.00019452,2]
[315396436,1709009443831,-500.0,0.00019452,2]
[315396437,1709009443840,-501.59504109,0.00019452,2]
[315396438,1709009443849,-14656.76,0.00019452,2]
[315396439,1709009443859,-500.0,0.00019452,2]
[315396440,1709009443871,-500.0,0.00019452,2]
[315396441,1709009443881,-1985.35,0.00019452,2]
[315396442,1709009443891,-5674.31,0.00019452,2]
[315396443,1709009443901,-500.0,0.00019452,2]
[315396444,1709009443910,-396.13099514,0.00019452,2]
[315396445,1709009443920,-500.0,0.00019452,2]
[315396446,1709009443929,-1212.6,0.00019452,2]
[315396447,1709009443939,-2855.21,0.00019452,2]
[315396448,1709009443948,-500.0,0.00019452,2]
[315396449,1709009443957,-500.0,0.00019452,2]
[315396450,1709009443967,-502.26498028,0.00019452,2]
[315396451,1709009443978,-194.15938752,0.00019452,2]
[315396452,1709009443989,-500.0,0.00019452,2]
[315396453,1709009443999,-167.66596435,0.00019452,2]
[315396454,1709009444009,-500.0,0.00019452,2]
[315396455,1709009444018,-500.0,0.00019452,2]
[315396456,1709009444027,-500.0,0.00019452,2]
[315396457,1709009444036,-541.7,0.00019452,2]
[315396458,1709009444046,-641.65,0.00019452,2]
[315396459,1709009444055,-2226.58,0.00019452,2]
[315396460,1709009444064,-500.0,0.00019452,2]
[315396461,1709009444073,-2975.15,0.00019452,2]
[315396462,1709009444082,-1960.4,0.00019452,2]
[315396463,1709009444093,-1565.15,0.00019452,2]
[315396464,1709009444104,-1538.88,0.00019452,2]
[315396465,1709009444113,-500.0,0.00019452,2]
[315396466,1709009444123,-2233.77,0.00019452,2]
[315396467,1709009444132,-500.0,0.00019452,2]
[315396468,1709009444141,-186.42839332,0.00019452,2]
[315396469,1709009444151,-503.60079056,0.00019452,2]
[315396470,1709009444161,-1159.44,0.00019452,2]
[315396471,1709009444171,-500.0,0.00019452,2]
[315396472,1709009444182,-500.0,0.00019452,2]
[315396473,1709009444191,-500.0,0.00019506,2]
[315396474,1709009444201,-500.0,0.00019561,2]
[315396475,1709009444210,-352.01506984,0.00019616,2]
[315396476,1709009444219,-166.666666,0.00019627,2]
[315396477,1709009444230,-581.11619843,0.00019694,2]
[315396478,1709009444240,-506.9,0.00019724,2]
[315396479,1709009444251,-506.9,0.00019724,2]
[315396480,1709009444260,-500.0,0.00019724,2]
[315396481,1709009444270,-500.0,0.00019724,2]
[315396482,1709009444280,-500.0,0.00019725,2]
[315396483,1709009444290,-506.9,0.00019725,2]
[315396484,1709009444299,-500.0,0.00019725,2]
[315396485,1709009444309,-500.0,0.00019726,2]
[315396486,1709009444318,-500.0,0.00019726,2]
[315396487,1709009444327,-524.20214721,0.00019726,2]
[315396488,1709009444337,-500.0,0.00019726,2]
[315396489,1709009444346,-500.0,0.00019726,2]
[315396490,1709009444356,-637.03,0.00019726,2]
[315396491,1709009444366,-1060.81,0.00019726,2]
[315396492,1709009444375,-500.0,0.00019726,2]
[315396493,1709009444384,-500.0,0.00019726,2]
[315396494,1709009444394,-500.0,0.00019726,2]
[315396495,1709009444403,-1002.42085392,0.00019726,2]
[315396496,1709009444412,-500.0,0.00019726,2]
[315396497,1709009444421,-500.0,0.00019726,2]
[315396498,1709009444430,-500.0,0.00019726,2]
[315396499,1709009444441,-523.18221423,0.00019726,2]
[315396500,1709009444450,-500.0,0.00019726,2]
[315396501,1709009444459,-594.47,0.00019726,2]
[315396502,1709009444468,-624.76811296,0.00019726,2]
[315396503,1709009444478,-500.0,0.00019726,2]
[315396504,1709009444487,-500.0,0.00019726,2]
[315396505,1709009444497,-615.27150898,0.00019726,2]
[315396506,1709009444507,-543.72,0.00019726,2]
[315396507,1709009444517,-500.0,0.00019726,2]
[315396508,1709009444526,-500.0,0.00019726,2]
[315396509,1709009444534,-2517.78,0.00019726,2]
[315396510,1709009444543,-1007.43,0.00019726,2]
[315396511,1709009444552,-290.43863408,0.00019726,2]
[315396512,1709009444560,-1663.07,0.00019726,2]
[315396513,1709009444569,-283.49549148,0.00019726,2]
[315396514,1709009444578,-500.0,0.00019726,2]
[315396515,1709009444587,-500.0,0.00019726,2]
[315396516,1709009444595,-500.0,0.00019726,2]
[315396517,1709009444604,-500.0,0.00019726,2]